bitfinex-derivatives/quotes_ETHF0:USTF0_20250709
["timestamp","ask_amount","ask_price","bid_price","bid_amount"]
[1752091909416,0.72783404,2753.5,2753.4,3.4932]
[1752091909611,0.00166404,2753.5,2753.4,4.21939]
[1752091909914,0.72782404,2753.5,2753.4,3.4932]
[1752091910310,0.72782404,2753.5,2753.4,4.21939]
[1752091910511,0.00166404,2753.5,2753.4,4.21939]
[1752091911011,0.72782404,2753.5,2753.4,4.21939]
[1752091911613,0.72782404,2753.5,2753.4,3.4932]
[1752091912011,0.72619,2753.4,2753.3,0.7262]
[1752091913019,0.72619,2753.4,2753.3,0.72622]
[1752091914617,0.72623,2753.3,2753.2,0.72622]
[1752091914814,0.9539,2753.3,2752.8,6.5893]
[1752091915015,0.72632,2752.9,2752.8,7.31563]
[1752091915220,0.72635,2752.8,2752.7,3.3441]
[1752091915715,29.8009,2753.2,2752.7,3.3441]
[1752091915917,3.25660653,2753.5,2753.1,3.2078]
[1752091916220,0.72782404,2753.5,2753.4,3.93399]
[1752091916517,0.00166404,2753.5,2753.4,3.93399]
[1752091917908,0.72782404,2753.5,2753.4,3.2078]
[1752091918415,0.72782404,2753.5,2753.4,3.93399]
[1752091919821,0.72782404,2753.5,2753.4,3.2078]
[1752091920017,1.68172404,2753.5,2753.4,3.2078]
[1752091920228,0.00166404,2753.5,2753.4,3.2078]
[1752091920521,0.00166404,2753.5,2753.4,3.93399]
[1752091921922,1.68172404,2753.5,2753.4,3.2078]
[1752091923322,0.00166404,2753.5,2753.4,3.93399]
[1752091925021,0.00166404,2753.5,2753.4,3.2078]
[1752091925318,0.72624,2753.2,2753.1,3.2078]
[1752091929417,0.72624,2753.2,2752.5,3.2078]
[1752091929418,8.85473093,2753.2,2752.5,3.2078]
[1752091929622,0.7264,2752.6,2752.5,3.2078]
[1752091929830,0.72643,2752.5,2752.4,0.006]
[1752091930121,4.13363,2752.5,2752.4,0.006]
[1752091930428,28.729,2752.6,2752.4,0.006]
[1752091930724,0.72653,2752.1,2752.0,5.3597125]
[1752091930929,0.72653,2752.1,2752.0,3.2078]
[1752091931419,0.72653,2752.1,2751.5,3.23134855]
[1752091931420,3.599,2752.1,2751.7,2.1519125]
[1752091931625,0.72661,2751.8,2751.7,2.1519125]
[1752091931831,0.72664,2751.7,2751.6,3.1190125]
[1752091932024,0.72664,2751.7,2751.6,0.9671]
[1752091932626,1.81625,2752.3,2751.6,0.9671]
[1752091932924,0.72661,2751.9,2751.7,0.72663]
[1752091933121,28.716,2752.3,2751.9,0.72657]
[1752091933325,0.9721,2752.6,2752.1,3.2078]
[1752091933326,0.72651,2752.2,2752.1,3.2078]
[1752091934530,0.72658,2752.0,2751.8,0.72661]
[1752091934728,0.72658,2752.0,2751.9,3.93949]
[1752091935028,0.72649,2752.3,2752.1,0.72651]
[1752091935235,0.72649,2752.3,2752.2,6.7282]
[1752091935428,0.72655,2752.1,2751.9,0.73167]
[1752091935624,0.9721,2752.6,2752.1,0.72653]
[1752091936325,0.72648,2752.4,2752.0,6.7282]
[1752091936629,0.72648,2752.4,2752.1,0.72653]
[1752091936832,0.72649,2752.3,2752.2,3.3428]
[1752091937933,0.72647,2752.4,2752.2,3.3428]
[1752091938119,0.9721,2752.6,2752.2,3.3428]
[1752091938120,0.72648,2752.3,2752.2,3.3428]
[1752091938521,0.9721,2752.6,2752.2,3.3428]
[1752091938731,0.72648,2752.3,2752.2,3.3428]
[1752091939931,5.02372,2752.8,2752.2,3.3428]
[1752091940126,0.72645,2752.4,2752.3,0.72646]
[1752091940625,1.81596,2752.7,2752.2,4.06929]
[1752091940826,0.72648,2752.3,2752.2,4.06929]
[1752091941723,1.81596,2752.7,2752.2,3.3428]
[1752091941924,0.72648,2752.3,2752.2,4.06929]
[1752091942327,0.72648,2752.3,2752.2,3.3428]
[1752091942521,0.72653,2752.1,2752.0,3.2078]
[1752091942729,3.2078,2752.4,2752.0,6.7045]
[1752091942928,0.72653,2752.1,2752.0,4.22325]
[1752091943324,0.72653,2752.1,2752.0,3.4967]
[1752091943631,0.72653,2752.1,2752.0,4.22326]
[1752091943932,0.72653,2752.1,2752.0,3.4967]
[1752091944328,0.72653,2752.1,2752.0,6.7045]
[1752091944625,2.65089165,2752.6,2752.0,6.7045]
[1752091944626,1.81602,2752.6,2752.1,0.72652]
[1752091944832,0.72648,2752.3,2752.2,3.4257]
[1752091945225,0.72648,2752.3,2752.2,4.15221]
[1752091945427,0.72648,2752.3,2752.2,3.4257]
[1752091945630,0.72648,2752.3,2752.2,4.15221]
[1752091945829,0.72648,2752.3,2752.2,3.4257]
[1752091946636,0.72653,2752.1,2752.0,3.2078]
[1752091946830,0.72656,2752.0,2751.9,0.73169]
[1752091947025,2.78832,2752.3,2751.9,0.73169]
[1752091947026,0.72655,2752.1,2752.0,0.72656]
[1752091947233,0.72653,2752.2,2752.1,0.72653]
[1752091947534,0.72656,2752.0,2751.9,4.13517]
[1752091947926,0.72656,2752.0,2751.9,3.4086]
[1752091948930,0.72656,2752.0,2751.9,4.13519]
[1752091949530,0.72656,2752.0,2751.5,5.85869165]
[1752091949531,0.72666,2751.6,2751.5,3.2078]
[1752091949724,2.78831,2752.3,2751.5,4.1749]
[1752091949929,0.72659,2751.9,2751.8,0.72659]
[1752091950830,0.72662,2751.8,2751.7,0.72662]
[1752091952035,0.72664,2751.7,2751.6,4.06074]
[1752091952429,0.72664,2751.7,2751.6,3.3341]
[1752091952629,0.72664,2751.7,2751.6,0.0081]
[1752091952830,1.69874,2751.7,2751.6,0.0081]
[1752091954436,0.72666,2751.6,2751.5,0.9085]
[1752091954629,1.69876,2751.6,2751.5,0.9085]
[1752091955132,3.63348,2751.5,2750.5,2.15470703]
[1752091955342,3.63348,2751.5,2750.6,3.5717]
[1752091955343,0.7269,2750.7,2750.6,3.5717]
[1752091956337,3.2078,2751.3,2750.7,0.72689]
[1752091956538,0.7268,2751.1,2750.8,4.29856]
[1752091956937,0.9721,2751.4,2750.8,5.8099]
[1752091957239,0.72676,2751.3,2751.0,3.2078]
[1752091957434,0.72677,2751.2,2751.1,7.1453]
[1752091957946,0.72682,2751.1,2750.8,2.2382]
[1752091958248,2.65089165,2751.3,2750.9,3.2806]
[1752091958249,0.72683,2751.0,2750.9,3.2806]
[1752091958750,0.72683,2751.0,2750.9,5.0981]
[1752091958941,0.72683,2751.0,2750.9,1.8175]
[1752091960449,0.72683,2751.0,2750.4,3.2806]
[1752091960450,3.2078,2750.5,2749.4,4.28892486]
[1752091960653,1.81734,2750.6,2749.2,4.28892486]
[1752091960841,3.2078,2749.4,2749.3,3.2806]
[1752091961240,3.93505,2749.4,2749.3,3.2806]
[1752091961446,5.35464286,2749.4,2749.3,3.2806]
[1752091961849,5.35464286,2749.4,2748.5,0.9515]
[1752091961850,0.72742,2748.8,2748.5,0.9515]
[1752091962149,3.2078,2748.8,2748.6,3.2997]
[1752091962646,0.72748,2748.5,2748.4,3.5034]
[1752091962848,3.93528,2748.5,2748.4,3.5034]
[1752091963448,3.93528,2748.5,2748.4,4.6263]
[1752091964051,3.93528,2748.5,2748.4,5.35381]
[1752091964052,3.2078,2748.5,2748.4,5.35381]
[1752091964249,3.2078,2749.4,2749.1,0.72731]
[1752091964451,1.55165917,2749.3,2749.2,3.4897]
[1752091964649,1.55165917,2749.3,2749.2,4.217]
[1752091965345,1.55165917,2749.3,2749.2,7.4248]
[1752091965551,0.72715,2749.8,2749.5,0.72721]
[1752091965748,0.72715,2749.8,2749.6,3.4897]
[1752091966144,0.72717,2749.7,2749.6,3.4897]
[1752091966653,0.72716,2749.8,2749.6,3.4897]
[1752091967155,0.72717,2749.7,2749.6,3.4897]
[1752091967457,3.2078,2749.9,2749.6,3.4897]
[1752091967750,3.2078,2749.9,2749.3,3.2829]
[1752091967751,0.72725,2749.4,2749.3,3.2829]
[1752091969552,3.2078,2749.6,2749.3,4.01016]
[1752091969752,3.93501,2749.6,2749.4,3.4901]
[1752091969958,0.72722,2749.5,2749.4,3.4901]
[1752091970257,3.93501,2749.6,2749.4,3.4901]
[1752091970460,3.93501,2749.6,2749.4,4.21734]
[1752091970648,0.72722,2749.5,2749.4,3.4901]
[1752091971252,3.935,2749.6,2749.4,4.21735]
[1752091971654,3.2078,2749.6,2749.5,0.72722]
[1752091972055,3.2078,2749.6,2749.4,4.21733]
[1752091972056,3.93499,2749.6,2749.4,4.21733]
[1752091972257,3.2078,2749.6,2749.5,0.72722]
[1752091972452,3.93499,2749.6,2749.4,4.21733]
[1752091972756,3.2078,2749.6,2749.5,0.72722]
[1752091972959,3.2078,2749.6,2749.4,4.21733]
[1752091973452,3.2078,2749.6,2749.5,0.72722]
[1752091973648,0.9569,2750.1,2749.5,6.7567]
[1752091973852,3.2078,2750.1,2750.0,0.72709]
[1752091974753,3.93486,2750.1,2749.9,0.7271]
[1752091974953,3.93486,2750.1,2750.0,3.5489]
[1752091975454,3.2078,2750.1,2750.0,4.27599]
[1752091976056,0.72705,2750.2,2750.0,3.5489]
[1752091976355,0.72702,2750.3,2750.2,0.72703]
[1752091976952,3.9348,2750.4,2750.2,0.72703]
[1752091977153,3.2078,2750.4,2750.2,0.72702]
[1752091977355,3.93479,2750.4,2750.2,0.72702]
[1752091977554,3.2078,2750.4,2750.3,0.72701]
[1752091977757,4.72727363,2750.4,2750.3,0.72701]
[1752091978455,4.72727363,2750.4,2749.5,3.2078]
[1752091978660,3.2078,2749.9,2749.8,0.72713]
[1752091978859,3.2078,2749.9,2749.5,6.0014]
[1752091979256,3.93492,2749.9,2749.7,0.72715]
[1752091979453,3.2078,2749.9,2749.8,0.72714]
[1752091979762,3.2078,2750.5,2749.8,3.2078]
[1752091979960,2.24135844,2750.4,2750.3,0.72701]
[1752091980362,1.51434844,2750.4,2750.3,0.72701]
[1752091980859,2.24132844,2750.4,2750.3,0.72701]
[1752091981258,1.51434844,2750.4,2750.3,0.72701]
[1752091981660,2.24132844,2750.4,2750.3,0.72701]
[1752091982062,1.51434844,2750.4,2750.3,0.72701]
[1752091982264,2.24132844,2750.4,2750.3,0.72701]
[1752091983061,1.51434844,2750.4,2750.3,1.85241]
[1752091983257,1.51434844,2750.4,2750.3,6.85241]
[1752091983658,1.51434844,2750.4,2750.3,10.23951]
[1752091984158,1.51434844,2750.4,2750.3,1.1254]
[1752091984159,2.47124844,2750.4,2750.3,1.1254]
[1752091984361,1.81753,2750.3,2749.4,1.81807]
[1752091984663,0.72718,2749.7,2749.6,0.72718]
[1752091984865,2.65638588,2749.8,2749.0,5.8152]
[1752091985063,3.38352588,2749.8,2749.7,0.72717]
[1752091985265,3.2078,2749.9,2749.8,0.72714]
[1752091985665,3.2078,2750.3,2750.2,0.72703]
[1752091985869,4.72082206,2750.3,2750.2,0.72703]
[1752091986063,1.51302206,2750.3,2750.2,0.72703]
[1752091986264,4.28077852,2750.8,2750.7,0.7269]
[1752091986565,4.3335701,2751.2,2751.1,0.7268]
[1752091986760,7.5413701,2751.3,2751.2,0.72677]
[1752091986956,3.2078,2751.3,2751.2,0.72677]
[1752091987367,4.3335701,2751.5,2751.2,56.709]
[1752091987663,7.5413701,2751.7,2751.6,0.72666]
[1752091987865,3.2078,2751.7,2751.6,0.72666]
[1752091988059,4.3335701,2751.8,2751.7,0.72664]
[1752091988260,4.3335701,2751.9,2751.8,0.72661]
[1752091988658,4.1544,2752.1,2751.5,7.89493]
[1752091989061,4.88093,2752.1,2752.0,0.72656]
[1752091989262,4.1544,2752.1,2751.5,6.0782]
[1752091989461,0.72659,2751.9,2751.5,6.0782]
[1752091989760,1.67319,2751.9,2751.8,0.72661]
[1752091990467,0.9466,2751.9,2751.8,0.72661]
[1752091990857,1.67319,2751.9,2751.7,0.72662]
[1752091991467,0.9466,2751.8,2751.5,6.0782]
[1752091991766,1.67324,2751.7,2751.5,6.80488]
[1752091992360,0.9466,2751.6,2751.2,56.709]
[1752091992660,0.72679,2751.2,2750.7,56.63]
[1752091992859,0.9466,2751.1,2750.8,2.2708]
[1752091993059,3.2078,2750.9,2750.7,57.35689]
[1752091993362,4.88127,2750.9,2750.7,57.35689]
[1752091993557,3.93467,2750.9,2750.7,57.35689]
[1752091993762,0.72688,2750.8,2750.7,57.35688]
[1752091993962,0.72688,2750.8,2750.7,56.63]
[1752091994163,1.67348,2750.8,2750.7,56.63]
[1752091994364,0.7269,2750.7,2750.6,2.7351]
[1752091994566,0.9466,2750.8,2750.4,2.2708]
[1752091994865,3.93467,2750.9,2750.7,0.7269]
[1752091995169,0.9466,2750.8,2750.5,0.72694]
[1752091995365,0.72693,2750.6,2750.5,0.72694]
[1752091995767,0.9466,2750.8,2750.6,0.72693]
[1752091995768,0.72692,2750.7,2750.6,0.72693]
[1752091995967,0.72694,2750.6,2750.5,0.72694]
[1752091996170,0.72695,2750.5,2750.4,2.2708]
[1752091996369,0.72695,2750.5,2750.4,2.99778]
[1752091996868,0.72695,2750.5,2750.4,2.2708]
[1752091997067,0.9466,2750.5,2749.9,56.575]
[1752091997267,1.81749,2750.4,2749.7,3.2078]
[1752091997571,0.72722,2749.5,2749.3,57.28926]
[1752091997870,0.72725,2749.4,2749.3,56.562]
[1752091998066,0.72725,2749.4,2749.3,0.72726]
[1752091998373,0.72721,2749.6,2749.5,0.72722]
[1752091998568,3.2078,2749.7,2749.6,0.72719]
[1752091998868,3.2078,2750.2,2750.1,0.72706]
[1752091999479,0.9466,2750.7,2750.0,0.72709]
[1752091999677,2.15924413,2750.6,2750.5,0.72694]
[1752091999880,1.43230413,2750.6,2750.5,0.72694]
[1752092000070,3.2078,2750.8,2750.7,0.7269]
[1752092000269,4.6400644,2750.8,2750.7,0.7269]
[1752092000466,1.4322644,2750.8,2750.7,0.7269]
[1752092001771,0.7269,2750.7,2750.6,2.2793]
[1752092002273,1.41973887,2750.7,2750.6,2.2793]
[1752092002469,0.72686,2750.9,2750.6,2.2793]
[1752092002669,0.72684,2751.0,2750.6,2.2793]
[1752092002874,2.14455892,2750.9,2750.8,0.72688]
[1752092003073,1.41770892,2750.9,2750.8,0.72688]
[1752092006170,0.9466,2751.1,2750.7,3.2078]
[1752092006376,1.81742,2750.5,2749.7,1.81792]
[1752092006678,3.93491,2750.0,2749.6,3.2078]
[1752092006883,1.41937072,2749.9,2749.6,3.2078]
[1752092007075,0.72716,2749.8,2749.6,3.2078]
[1752092007376,3.2078,2750.0,2749.6,3.2078]
[1752092007377,1.41937072,2749.7,2749.6,3.2078]
[1752092007580,3.2078,2750.0,2749.9,0.72711]
[1752092007768,3.2078,2750.0,2749.8,0.72712]
[1752092007973,3.9349,2750.0,2749.8,0.72712]
[1752092008274,3.9349,2750.0,2749.9,0.72711]
[1752092008478,3.93491,2750.0,2749.6,31.4248]
[1752092008680,3.2078,2750.0,2749.6,31.4248]
[1752092008882,0.9466,2749.9,2749.5,0.72721]
[1752092009177,0.72725,2749.4,2749.3,3.08147]
[1752092009580,0.72724,2749.5,2749.4,0.72723]
[1752092009881,0.72719,2749.7,2749.6,0.72718]
[1752092010077,0.72721,2749.6,2749.5,0.72721]
[1752092010482,3.2078,2749.9,2749.3,2.3542]
[1752092010784,0.72725,2749.4,2749.3,3.08146]
[1752092011884,0.72725,2749.4,2749.3,2.3542]
[1752092012278,0.7272,2749.6,2749.3,2.3542]
[1752092012573,4.1544,2750.2,2750.1,0.72706]
[1752092012779,1.41896463,2750.2,2750.1,0.72706]
[1752092013081,1.41896463,2750.2,2749.5,3.2078]
[1752092013082,0.9466,2750.2,2749.5,3.2078]
[1752092013280,0.72712,2749.9,2749.8,0.72712]
[1752092013485,4.1544,2750.2,2749.9,0.7271]
[1752092013486,0.7271,2750.0,2749.9,0.7271]
[1752092013783,0.72726,2749.4,2749.3,0.72726]
[1752092014481,0.9466,2749.8,2749.7,0.72717]
[1752092014685,0.72712,2749.9,2749.8,0.72713]
[1752092014976,3.93485,2750.2,2750.0,0.72709]
[1752092015185,1.41262345,2750.1,2750.0,0.72709]
[1752092015383,0.9466,2750.1,2750.0,0.72709]
[1752092015784,3.2078,2750.2,2750.1,0.72706]
[1752092015988,4.6202834,2750.2,2750.1,0.72706]
[1752092016381,0.72701,2750.3,2750.2,0.72703]
[1752092016580,1.41237124,2750.3,2750.2,0.72703]
[1752092016785,0.72698,2750.4,2750.3,0.72701]
[1752092016990,3.08591801,2750.4,2750.3,0.72701]
[1752092017283,1.41233801,2750.4,2750.3,0.72701]
[1752092017487,1.67352,2750.7,2750.6,0.72693]
[1752092017783,2.35868727,2750.7,2750.0,5.02552]
[1752092017984,4.70947391,2750.7,2750.3,0.727]
[1752092018183,0.72698,2750.5,2750.4,0.72698]
[1752092018580,0.9788,2750.5,2750.4,0.72698]
[1752092018783,0.72692,2750.7,2750.6,0.72692]
[1752092018981,3.2078,2750.8,2750.7,0.7269]
[1752092019177,1.41207265,2750.8,2750.7,0.7269]
[1752092019379,4.61987265,2750.8,2750.5,2.3369]
[1752092019588,1.41207265,2750.7,2750.6,0.72691]
[1752092020089,1.7057,2750.7,2750.6,0.72691]
[1752092020291,0.72693,2750.6,2750.5,0.72694]
[1752092020486,0.72695,2750.5,2750.4,0.72696]
[1752092020689,0.72695,2750.5,2750.4,0.72697]
[1752092020690,0.72696,2750.5,2750.4,0.72697]
[1752092020890,2.65488175,2750.7,2750.3,2.2525]
[1752092021091,3.38179175,2750.7,2750.3,2.2525]
[1752092021389,1.70575,2750.6,2750.5,0.72695]
[1752092021587,0.9788,2750.6,2750.5,0.72695]
[1752092021993,0.9788,2750.6,2750.3,2.2525]
[1752092022290,0.9788,2750.5,2750.4,0.72698]
[1752092023284,1.36024338,2750.5,2750.3,2.2525]
[1752092023582,3.2078,2750.8,2750.7,0.7269]
[1752092023785,4.56800348,2750.8,2750.7,0.7269]
[1752092024186,5.54680348,2750.8,2750.7,0.7269]
[1752092024383,4.56800348,2750.8,2750.7,0.7269]
[1752092024586,1.36020348,2750.8,2750.7,0.7269]
[1752092025192,2.33900348,2750.8,2750.7,0.7269]
[1752092025495,1.36020348,2750.8,2750.7,0.7269]
[1752092025789,1.9045,2751.5,2750.7,0.7269]
[1752092025790,6.46167946,2751.5,2750.9,1.81713]
[1752092025982,3.2078,2751.5,2751.4,0.72672]
[1752092026396,8.16707946,2751.9,2751.7,0.72663]
[1752092026688,8.16707946,2751.9,2751.2,3.74609]
[1752092026689,6.46167946,2751.9,2751.2,1.9292]
[1752092026891,3.2078,2751.6,2751.2,1.9292]
[1752092027086,3.2078,2751.6,2751.2,2.65595]
[1752092027284,0.72672,2751.4,2751.2,2.65596]
[1752092027489,0.9788,2751.3,2751.2,2.65596]
[1752092028495,4.91328,2751.6,2751.2,1.9292]
[1752092028695,0.72669,2751.5,2751.4,0.7267]
[1752092028898,4.91328,2751.6,2751.3,1.9571]
[1752092029100,4.1866,2751.6,2751.4,0.7267]
[1752092029307,0.72672,2751.4,2751.3,1.9571]
[1752092029610,4.91327,2751.6,2751.3,1.9571]
[1752092029805,4.91327,2751.6,2751.4,0.7267]
[1752092030006,1.70549,2751.5,2751.4,0.7267]
[1752092030313,0.9788,2751.5,2751.4,0.7267]
[1752092031107,0.9788,2751.5,2751.4,0.72672]
[1752092031908,3.2078,2751.6,2751.5,0.72669]
[1752092032905,3.2078,2751.9,2751.8,0.72661]
[1752092033810,4.91309,2752.3,2752.2,0.72651]
[1752092034108,0.9788,2752.3,2752.1,0.72651]
[1752092034311,0.72652,2752.2,2752.1,0.72651]
[1752092034604,1.70532,2752.2,2752.1,0.72651]
[1752092034811,0.9788,2752.2,2752.1,0.72651]
[1752092036712,3.2078,2752.3,2752.2,0.72651]
[1752092037010,1.70528,2752.3,2752.2,0.72651]
[1752092037205,0.9788,2752.3,2752.2,0.72651]
[1752092037410,4.1866,2752.3,2752.2,0.72651]
[1752092038308,4.1866,2752.3,2751.3,3.2078]
[1752092038609,4.1866,2752.6,2752.5,0.72643]
[1752092038811,5.50791636,2752.6,2752.5,0.72643]
[1752092039305,4.52911636,2752.6,2752.5,0.72643]
[1752092039503,3.2078,2752.6,2752.5,0.72643]
[1752092039913,4.71058144,2753.6,2752.5,0.72643]
[1752092039914,3.2078,2752.9,2752.8,0.72635]
[1752092040107,0.9788,2753.4,2752.7,0.72636]
[1752092040108,3.2078,2753.4,2752.7,0.72636]
[1752092040307,3.2078,2752.8,2752.2,5.2736]
[1752092040613,0.72647,2752.4,2752.2,6.0001]
[1752092040808,3.2078,2752.5,2751.8,3.2078]
[1752092041007,1.81634,2752.1,2751.5,3.93448]
[1752092041203,3.2078,2751.9,2751.4,2.1136]
[1752092041408,1.81654,2751.8,2751.1,3.2078]
[1752092041609,1.81667,2751.6,2751.1,3.2078]
[1752092041809,0.72678,2751.2,2751.0,0.72681]
[1752092042005,3.72094,2751.8,2750.8,3.2078]
[1752092042006,1.81654,2751.8,2750.8,3.2078]
[1752092042205,0.72677,2751.3,2751.0,0.72682]
[1752092042408,0.72677,2751.3,2751.1,0.7268]
[1752092042801,3.2078,2751.6,2751.3,0.72674]
[1752092042802,0.72671,2751.5,2751.3,0.72674]
[1752092043002,0.72676,2751.3,2751.1,0.72677]
[1752092043406,0.72674,2751.3,2751.1,0.72678]
[1752092043909,0.72673,2751.4,2751.2,0.72675]
[1752092044110,0.72671,2751.5,2750.9,2.1136]
[1752092044311,0.72669,2751.5,2751.2,0.72675]
[1752092044506,0.7267,2751.5,2750.9,2.1136]
[1752092044712,4.1866,2751.6,2750.9,2.1136]
[1752092044906,4.1866,2751.6,2751.3,0.72673]
[1752092045106,0.72672,2751.4,2751.2,0.72676]
[1752092045314,4.91329,2751.6,2750.9,2.1136]
[1752092045512,0.72671,2751.5,2751.3,0.72673]
[1752092045712,0.72672,2751.4,2751.2,0.72675]
[1752092046012,1.70553,2751.4,2751.2,0.72675]
[1752092046814,1.70553,2751.4,2751.2,0.72676]
[1752092047114,1.70552,2751.4,2751.1,2.0145]
[1752092047315,0.72675,2751.3,2751.1,2.74128]
[1752092047609,3.2078,2751.6,2751.2,1.9811]
[1752092047814,0.72672,2751.4,2751.2,2.70786]
[1752092048004,3.2078,2751.6,2751.3,1.9811]
[1752092048210,3.2078,2751.6,2751.4,0.72671]
[1752092048417,3.2078,2751.6,2751.5,1.9811]
[1752092048808,3.93446,2751.6,2751.5,1.9811]
[1752092049414,3.93446,2751.6,2751.5,2.70779]
[1752092049604,3.93446,2751.6,2751.5,1.9811]
[1752092050214,3.2078,2751.6,2751.5,2.70779]
[1752092050405,1.73453,2751.8,2751.5,2.70779]
[1752092050406,0.72663,2751.8,2751.6,0.72666]
[1752092050610,0.72663,2751.8,2751.7,1.756]
[1752092050909,0.72658,2752.0,2751.7,1.756]
[1752092051111,1.31261991,2751.9,2751.8,0.7266]
[1752092051808,0.72655,2752.1,2751.9,0.72658]
[1752092052112,0.72653,2752.1,2752.0,1.756]
[1752092052314,1.31279344,2752.1,2752.0,2.48256]
[1752092052512,2.00884081,2752.1,2752.0,1.756]
[1752092052913,1.28231081,2752.1,2752.0,2.48256]
[1752092053215,2.00884081,2752.1,2752.0,1.756]
[1752092053416,2.00884081,2752.1,2752.0,2.48256]
[1752092053616,1.28231081,2752.1,2752.0,2.48256]
[1752092053915,7.3401301,2753.0,2752.4,0.72644]
[1752092053916,3.93421,2752.6,2752.4,0.72644]
[1752092054105,3.2078,2752.6,2752.5,0.72643]
[1752092054313,1.28135204,2752.6,2752.5,0.72643]
[1752092054513,4.2157,2752.9,2752.8,0.72635]
[1752092054716,6.22354376,2752.9,2752.7,0.72636]
[1752092055010,4.94203,2752.9,2752.8,1.9048]
[1752092055215,4.2157,2752.9,2752.8,2.63115]
[1752092055412,4.2157,2752.9,2752.3,3.2078]
[1752092055413,0.72645,2752.4,2752.3,3.2078]
[1752092055606,1.81621,2752.3,2751.3,2.15854132]
[1752092055808,3.2078,2751.9,2751.4,0.72669]
[1752092056011,0.7267,2751.5,2751.3,0.72672]
[1752092056222,0.7267,2751.5,2751.3,1.8983]
[1752092056413,5.85992733,2751.9,2751.4,0.72672]
[1752092056717,1.1903,2752.3,2751.7,0.72664]
[1752092056718,1.3080669,2751.8,2751.7,0.72664]
[1752092056917,0.72655,2752.1,2751.9,0.72658]
[1752092057113,1.30786708,2752.0,2751.9,0.72658]
[1752092057314,1.30786708,2752.0,2751.9,3.93438]
[1752092058015,2.65212733,2752.2,2751.5,1.9477]
[1752092058219,1.30791484,2752.1,2752.0,0.72656]
[1752092058415,2.03448879,2752.1,2751.9,0.72657]
[1752092058620,1.30795879,2752.0,2751.9,0.72657]
[1752092059420,1.30795879,2752.0,2751.7,3.2078]
[1752092059421,2.03451879,2752.0,2751.8,0.72659]
[1752092059620,2.03451879,2752.0,2751.9,0.72658]
[1752092059621,0.72656,2752.0,2751.9,0.72658]
[1752092060120,1.29840744,2752.1,2751.9,0.72658]
[1752092060419,1.29840744,2752.0,2751.9,0.72658]
[1752092060620,0.72652,2752.2,2752.0,0.72653]
[1752092060820,1.29787994,2752.1,2752.0,0.72656]
[1752092063527,1.29787994,2752.1,2752.0,3.93436]
[1752092064920,0.72644,2752.5,2752.4,0.72645]
[1752092065222,1.73433,2752.5,2752.4,0.72645]
[1752092065616,0.72641,2752.6,2752.5,0.72643]
[1752092065820,0.72641,2752.6,2752.1,3.73921]
[1752092065821,1.73426,2752.8,2752.6,0.72638]
[1752092066025,1.0079,2752.8,2752.6,0.72638]
[1752092066323,1.0079,2752.8,2752.7,0.72637]
[1752092066520,0.72637,2752.7,2752.6,0.72639]
[1752092066830,1.0079,2752.7,2752.6,0.7264]
[1752092067230,1.73427,2752.7,2752.6,0.7264]
[1752092067821,1.0079,2752.7,2752.6,0.7264]
[1752092068124,1.0079,2752.7,2752.5,0.72641]
[1752092068326,1.0079,2752.6,2752.0,3.2078]
[1752092068625,2.89192715,2752.3,2751.7,1.7563]
[1752092068826,0.72657,2752.0,2751.8,0.72659]
[1752092069122,1.73447,2752.0,2751.8,0.72659]
[1752092069322,1.73447,2752.0,2751.9,0.72659]
[1752092069517,1.0079,2752.0,2751.9,0.72659]
[1752092071024,2.89192715,2752.3,2751.7,1.7563]
[1752092071025,0.72652,2752.2,2752.0,0.72655]
[1752092071324,1.73442,2752.2,2752.0,0.72655]
[1752092071527,1.73442,2752.2,2752.0,0.72654]
[1752092071724,1.73442,2752.2,2752.1,0.72653]
[1752092071925,0.72653,2752.1,2751.8,1.8768]
[1752092072221,1.73442,2752.2,2751.8,1.8768]
[1752092072426,0.72654,2752.1,2752.0,0.72654]
[1752092072727,1.73442,2752.2,2752.1,0.72653]
[1752092072931,0.72649,2752.3,2752.2,0.72649]
[1752092073128,3.93419,2752.7,2752.6,0.7264]
[1752092073328,3.2078,2752.7,2752.6,0.7264]
[1752092073922,7.10762715,2752.7,2752.0,1.81639]
[1752092074124,0.72647,2752.4,2752.3,0.72647]
[1752092074327,1.0079,2752.4,2752.0,1.8297]
[1752092074630,1.81609,2752.5,2752.1,0.72652]
[1752092074823,0.72653,2752.1,2752.0,2.55624]
[1752092075226,0.72653,2752.1,2752.0,0.72655]
[1752092075524,0.72653,2752.2,2752.1,0.72653]
[1752092075826,1.73438,2752.3,2752.2,0.72651]
[1752092076027,0.72651,2752.2,2752.1,0.72651]
[1752092076228,1.0079,2752.3,2752.1,0.52764132]
[1752092076431,1.0079,2752.3,2752.2,0.52764132]
[1752092076628,1.73438,2752.3,2752.2,0.52764132]
[1752092076926,3.00629068,2752.3,2752.2,0.52764132]
[1752092077126,3.00629068,2752.3,2752.2,1.25428462]
[1752092077424,2.27981068,2752.3,2752.2,1.25428462]
[1752092077929,1.27191068,2752.3,2752.2,1.25428462]
[1752092078124,3.00129068,2752.3,2752.2,1.25428462]
[1752092078323,2.27481068,2752.3,2752.2,1.25428462]
[1752092078628,3.00129068,2752.3,2752.2,1.25428462]
[1752092078932,3.00129068,2752.3,2752.2,0.52777462]
[1752092079329,3.00129068,2752.3,2752.2,1.25428462]
[1752092079633,3.00129068,2752.3,2752.2,0.52777462]
[1752092079832,3.00129068,2752.3,2752.2,1.25428462]
[1752092080132,3.00129068,2752.3,2752.2,0.52777462]
[1752092080931,3.00129068,2752.3,2752.2,1.25428462]